bitfinex-derivatives/quotes_BTCF0:USTF0_20210104
["timestamp","ask_amount","ask_price","bid_price","bid_amount"]
[1609775303441,3.69181,31652.0,31643.0,0.13632608]
[1609775303643,3.69181,31652.0,31632.0,0.11159]
[1609775304042,0.10461,31652.0,31632.0,0.11159]
[1609775304241,4.8145,31651.0,31632.0,0.11159]
[1609775304542,4.908,31651.0,31632.0,0.11159]
[1609775304742,4.908,31651.0,31633.0,0.0948]
[1609775304943,4.908,31651.0,31630.0,0.0939]
[1609775305343,0.13632608,31637.0,31635.0,0.13632608]
[1609775305544,0.0935,31651.0,31635.0,0.13632608]
[1609775306145,0.10461,31652.0,31635.0,0.13632608]
[1609775307248,0.0938,31651.0,31636.0,0.0938]
[1609775307448,0.0938,31651.0,31645.0,0.13632608]
[1609775308551,0.0938,31651.0,31646.0,0.0942]
[1609775309352,0.13632608,31649.0,31646.0,0.0942]
[1609775310253,0.13632608,31649.0,31645.0,0.13632608]
[1609775311357,0.0936,31648.0,31645.0,0.13632608]
[1609775311556,0.13632608,31649.0,31633.0,0.15596]
[1609775311955,0.73762608,31649.0,31633.0,0.15596]
[1609775312556,0.73762608,31649.0,31634.0,0.0943]
[1609775312557,0.0955,31648.0,31634.0,0.0943]
[1609775312756,0.0955,31648.0,31633.0,0.10056]
[1609775312956,0.0955,31648.0,31630.0,0.095]
[1609775313157,3.94789,31645.0,31608.0,0.15092]
[1609775313356,3.94789,31645.0,31622.0,0.13632608]
[1609775313558,0.12339,31645.0,31622.0,0.13632608]
[1609775314957,4.91899,31645.0,31622.0,0.13632608]
[1609775315360,4.91899,31645.0,31618.0,0.15618]
[1609775315361,0.13632608,31630.0,31628.0,0.13632608]
[1609775315559,0.13632608,31630.0,31618.0,0.15618]
[1609775317461,0.12339,31645.0,31629.0,0.13632608]
[1609775317662,0.59753338,31645.0,31629.0,0.13632608]
[1609775318262,0.094,31644.0,31629.0,0.13632608]
[1609775318464,0.59753338,31645.0,31629.0,0.13632608]
[1609775318664,0.59753338,31645.0,31618.0,0.15618]
[1609775318863,0.6911,31644.0,31618.0,0.15618]
[1609775319065,0.6911,31644.0,31605.0,4.4852]
[1609775319467,0.13632608,31630.0,31629.0,0.13632608]
[1609775320866,0.22982608,31630.0,31629.0,0.13632608]
[1609775321366,0.13632608,31630.0,31629.0,0.13632608]
[1609775321965,0.23102608,31630.0,31629.0,0.13632608]
[1609775322166,0.23102608,31630.0,31615.0,3.8259]
[1609775322366,0.23102608,31630.0,31615.0,4.0157]
[1609775322968,0.13632608,31630.0,31615.0,3.8259]
[1609775323569,0.13632608,31619.0,31618.0,0.13632608]
[1609775323970,0.22962608,31619.0,31618.0,0.23042608]
[1609775324169,0.13632608,31619.0,31618.0,0.13632608]
[1609775325672,0.13632608,31619.0,31603.0,5.0074]
[1609775326877,0.14583,31629.0,31603.0,5.0074]
[1609775327077,0.14583,31629.0,31603.0,5.12436]
[1609775328078,0.14583,31629.0,31622.0,0.13632608]
[1609775329077,0.14583,31629.0,31613.0,0.12108]
[1609775330280,0.13632608,31615.0,31613.0,0.25740608]
[1609775331679,3.6736,31622.0,31613.0,0.12108]
[1609775332079,0.13632608,31614.0,31613.0,0.25740608]
[1609775334684,0.13632608,31614.0,31613.0,0.12108]
[1609775334884,0.13632608,31614.0,31603.0,0.11696]
[1609775335083,0.13632608,31614.0,31596.0,4.0195]
[1609775335682,0.13632608,31614.0,31590.0,0.294]
[1609775336284,0.13632608,31604.0,31601.0,0.13632608]
[1609775337487,4.3474,31618.0,31590.0,0.294]
[1609775337687,0.1111,31609.0,31586.0,2.08797128]
[1609775337885,0.1111,31609.0,31587.0,0.16075005]
[1609775338285,4.0805,31609.0,31587.0,0.16075005]
[1609775338686,4.0805,31609.0,31592.0,0.13632608]
[1609775340188,4.0805,31609.0,31588.0,2.10902529]
[1609775340589,4.0805,31609.0,31589.0,0.13632608]
[1609775341289,4.0805,31609.0,31589.0,0.23062608]
[1609775341491,0.1111,31609.0,31589.0,0.13632608]
[1609775341690,0.13274,31617.0,31589.0,0.13632608]
[1609775342090,0.54285945,31622.0,31589.0,0.13632608]
[1609775342692,0.54285945,31622.0,31619.0,0.13632608]
[1609775343091,0.54285945,31622.0,31607.0,0.14083]
[1609775343492,0.14583,31629.0,31607.0,0.14083]
[1609775343691,0.54387387,31631.0,31607.0,0.14083]
[1609775344093,0.54387387,31631.0,31600.0,0.13982]
[1609775344694,0.54387387,31631.0,31609.0,0.13632608]
[1609775345297,0.54380495,31633.0,31609.0,0.13632608]
[1609775346800,0.37960268,31625.0,31619.0,0.13632608]
[1609775347000,0.52538268,31625.0,31619.0,0.13632608]
[1609775347400,0.52538268,31625.0,31607.0,0.09675]
[1609775348000,0.14578,31625.0,31607.0,0.09675]
[1609775348401,0.14578,31625.0,31600.0,0.13982]
[1609775348601,0.13632608,31601.0,31600.0,0.13982]
[1609775348801,0.13632608,31601.0,31599.0,2.10486841]
[1609775349401,0.13632608,31601.0,31596.0,2.10568676]
[1609775350203,0.11852,31613.0,31596.0,1.99048676]
[1609775350402,4.0423,31608.0,31596.0,1.99048676]
[1609775350603,4.0423,31608.0,31594.0,0.12423]
[1609775350802,0.13632608,31601.0,31598.0,0.13632608]
[1609775351202,4.0423,31608.0,31594.0,0.12423]
[1609775352508,0.11852,31613.0,31594.0,0.12423]
[1609775352706,0.13632608,31595.0,31594.0,0.12423]
[1609775353107,0.11852,31613.0,31594.0,0.12423]
[1609775354107,0.2805,31623.0,31594.0,0.12423]
[1609775354710,0.2805,31623.0,31602.0,0.13632608]
[1609775355709,0.2805,31623.0,31594.0,0.12423]
[1609775355909,0.2805,31623.0,31584.0,4.6735]
[1609775356712,0.2805,31623.0,31588.0,0.0948]
[1609775357114,0.47453338,31619.0,31584.0,4.6735]
[1609775357316,0.47453338,31619.0,31587.0,2.45426329]
[1609775357916,0.47453338,31619.0,31604.0,0.13632608]
[1609775360017,0.13632608,31605.0,31604.0,0.13632608]
[1609775362019,0.15266,31617.0,31604.0,0.13632608]
[1609775362420,0.15266,31617.0,31600.0,0.14814]
[1609775363321,0.47453338,31619.0,31598.0,0.0937]
[1609775363520,0.47453338,31619.0,31598.0,0.13931]
[1609775363720,0.47453338,31619.0,31598.0,0.74451]
[1609775363920,0.13632608,31617.0,31610.0,0.13632608]
[1609775364322,0.47453338,31619.0,31598.0,0.74451]
[1609775364521,0.14578,31625.0,31598.0,0.23471]
[1609775364721,0.1259,31636.0,31598.0,0.23471]
[1609775365121,0.53595736,31637.0,31598.0,0.23471]
[1609775365525,0.53615329,31639.0,31598.0,0.23471]
[1609775366123,0.53615329,31639.0,31621.0,0.13632608]
[1609775366330,0.53615329,31639.0,31611.0,0.1062]
[1609775366526,0.66228329,31639.0,31611.0,0.1062]
[1609775367326,1.26438329,31639.0,31611.0,0.1062]
[1609775368128,0.13632608,31612.0,31611.0,0.1062]
[1609775368727,0.13632608,31612.0,31601.0,0.13632608]
[1609775369130,0.13632608,31612.0,31598.0,2.24226933]
[1609775369131,0.13632608,31612.0,31598.0,0.13931]
[1609775369328,0.13632608,31612.0,31594.0,2.10587529]
[1609775370028,0.12239,31615.0,31599.0,0.13632608]
[1609775372131,0.13632608,31600.0,31599.0,0.13632608]
[1609775376536,0.12239,31615.0,31594.0,0.11955]
[1609775376735,4.2089,31619.0,31594.0,0.11991]
[1609775377435,4.74630697,31619.0,31594.0,0.11991]
[1609775378136,4.74630697,31619.0,31595.0,0.13632608]
[1609775380039,0.13632608,31596.0,31595.0,0.13632608]
[1609775384249,0.1046,31611.0,31595.0,0.13632608]
[1609775384644,0.1046,31611.0,31595.0,0.87282608]
[1609775384846,0.47463848,31612.0,31595.0,0.87282608]
[1609775385045,0.47463848,31612.0,31595.0,0.7365]
[1609775385446,0.47463848,31612.0,31594.0,0.11991]
[1609775385645,0.47463848,31612.0,31596.0,4.6876]
[1609775385846,0.47463848,31612.0,31596.0,0.10431]
[1609775386247,0.47463848,31612.0,31611.0,0.13632608]
[1609775386647,0.37971079,31616.0,31609.0,0.1118]
[1609775387047,0.54003468,31618.0,31609.0,0.1118]
[1609775387448,3.97543,31639.0,31609.0,0.1118]
[1609775387449,0.10774,31625.0,31609.0,0.1118]
[1609775387748,0.54168781,31628.0,31609.0,0.1118]
[1609775388250,0.54168781,31628.0,31622.0,0.13632608]
[1609775388850,0.66622781,31628.0,31609.0,0.1118]
[1609775389048,0.12454,31628.0,31609.0,0.1118]
[1609775390149,0.13632608,31612.0,31611.0,0.13632608]
[1609775391351,0.66555861,31628.0,31609.0,0.1118]
[1609775391552,0.66555861,31628.0,31609.0,0.10271]
[1609775392256,0.66555861,31628.0,31616.0,0.13632608]
[1609775392455,0.54061024,31626.0,31616.0,0.13632608]
[1609775394256,0.13632608,31617.0,31616.0,0.13632608]
[1609775394457,0.54061024,31626.0,31616.0,0.13632608]
[1609775394858,0.54265502,31627.0,31616.0,0.13632608]
[1609775395056,0.54265502,31627.0,31609.0,0.10271]
[1609775396159,0.54265502,31627.0,31624.0,0.13632608]
[1609775396359,0.66730947,31628.0,31624.0,0.13632608]
[1609775397763,0.12454,31628.0,31624.0,0.13632608]
[1609775397961,1.01794072,31632.0,31624.0,0.13632608]
[1609775398162,0.13632608,31625.0,31614.0,0.13632608]
[1609775398362,0.13632608,31625.0,31609.0,0.10271]
[1609775398561,0.13632608,31625.0,31599.0,2.11018537]
[1609775398964,0.13632608,31625.0,31600.0,2.11048574]
[1609775400267,0.10889,31630.0,31601.0,0.13632608]
[1609775400467,0.54402875,31625.0,31601.0,0.13632608]
[1609775402368,0.13632608,31602.0,31601.0,0.13632608]
[1609775402569,0.13632608,31602.0,31588.0,2.11072124]
[1609775402968,0.15714,31604.0,31588.0,2.11072124]
[1609775403368,0.85914,31604.0,31588.0,2.11072124]
[1609775403971,0.85914,31604.0,31587.0,0.11921]
[1609775404171,0.85914,31604.0,31585.0,2.11128648]
[1609775404372,0.85914,31604.0,31586.0,0.13632608]
[1609775406374,0.13632608,31587.0,31586.0,0.13632608]
[1609775408979,5.3188,31599.0,31580.0,0.15445]
[1609775409181,0.37987907,31602.0,31580.0,0.15445]
[1609775409582,0.0961,31601.0,31580.0,0.15445]
[1609775409781,4.8466,31583.0,31580.0,5e-05]
[1609775410183,4.8466,31583.0,31570.0,2.10772614]
[1609775410384,4.80492608,31571.0,31570.0,2.10772614]
[1609775410784,4.80492608,31571.0,31568.0,2.30196015]
[1609775411184,4.54042608,31571.0,31568.0,2.30196015]
[1609775412385,4.54042608,31571.0,31565.0,0.13009]
[1609775412784,4.4041,31571.0,31565.0,0.13009]
[1609775413584,0.14851,31579.0,31565.0,0.13009]
[1609775414385,0.14851,31579.0,31574.0,0.13632608]
[1609775415388,0.2967,31587.0,31574.0,0.13632608]
[1609775415986,0.53205277,31596.0,31574.0,0.13632608]
[1609775416386,0.53205277,31596.0,31590.0,0.13632608]
[1609775416587,0.2852,31599.0,31590.0,0.13632608]
[1609775417089,0.18529337,31580.0,31572.0,4.80856]
[1609775417290,0.18529337,31580.0,31572.0,0.12496]
[1609775417691,0.18529337,31580.0,31573.0,0.0951]
[1609775417887,4.5367,31605.0,31573.0,0.0951]
[1609775418088,0.31673977,31591.0,31573.0,0.0951]
[1609775418489,0.38006903,31586.0,31573.0,0.0951]
[1609775418989,0.38006903,31586.0,31585.0,0.13632608]
[1609775419388,0.38006903,31586.0,31585.0,0.27554608]
[1609775420689,0.13632608,31598.0,31585.0,0.27554608]
[1609775421088,0.2832,31615.0,31597.0,0.13632608]
[1609775422091,0.7431,31614.0,31597.0,0.13632608]
[1609775422289,0.7431,31614.0,31585.0,0.13922]
[1609775422489,0.12855,31614.0,31585.0,0.13922]
[1609775422689,4.2323,31608.0,31585.0,0.13922]
[1609775423489,0.12855,31614.0,31585.0,0.13922]
[1609775424191,0.01799835,31610.0,31585.0,0.13922]
[1609775424390,0.01799835,31610.0,31572.0,0.12496]
[1609775424590,0.01799835,31610.0,31565.0,2.22935393]
[1609775424991,0.01799835,31610.0,31585.0,0.13632608]
[1609775425291,0.01799835,31610.0,31585.0,0.26672608]
[1609775425495,5.56164385,31613.0,31585.0,0.26672608]
[1609775425692,5.56164385,31613.0,31585.0,0.1304]
[1609775426797,0.64156973,31608.0,31586.0,0.0937]
[1609775426997,0.64156973,31608.0,31599.0,0.13632608]
[1609775427999,0.64156973,31608.0,31599.0,0.15730776]
[1609775428202,0.37979491,31609.0,31599.0,0.15730776]
[1609775429000,0.13632608,31600.0,31599.0,0.15730776]
[1609775431402,0.10001,31604.0,31599.0,0.15730776]
[1609775432007,0.37979491,31609.0,31600.0,0.0948]
[1609775433209,0.13632608,31609.0,31608.0,0.13632608]
[1609775433408,0.12855,31614.0,31599.0,0.15388168]
[1609775433608,0.64385506,31618.0,31599.0,0.15388168]
[1609775433811,0.64527337,31623.0,31599.0,0.15388168]
[1609775435109,0.77182627,31621.0,31599.0,0.15388168]
[1609775436110,0.12584,31621.0,31599.0,0.15388168]
[1609775437009,0.13632608,31625.0,31599.0,0.15388168]
[1609775437209,0.13632608,31625.0,31620.0,0.13632608]
[1609775437609,0.64823927,31628.0,31620.0,0.13632608]
[1609775438010,0.6488595,31629.0,31620.0,0.13632608]
[1609775438413,0.6488595,31629.0,31620.0,0.22962608]
[1609775438813,0.65155967,31641.0,31620.0,0.22962608]
[1609775439212,0.37942987,31639.0,31635.0,0.13632608]
[1609775440215,0.94327272,31648.0,31635.0,0.13632608]
[1609775440615,0.79754272,31648.0,31635.0,0.13632608]
[1609775440814,0.58934272,31648.0,31636.0,0.0938]
[1609775441116,0.58934272,31648.0,31647.0,0.13632608]
[1609775441315,0.44774272,31648.0,31647.0,0.13632608]
[1609775441514,0.89631656,31651.0,31645.0,0.13724]
[1609775441715,1.01703856,31663.0,31645.0,0.13724]
[1609775443115,1.01703856,31663.0,31659.0,0.13632608]
[1609775443314,1.01703856,31663.0,31645.0,0.13724]
[1609775443718,0.13535,31665.0,31645.0,0.13724]
[1609775445716,0.13535,31665.0,31663.0,0.13632608]
[1609775445918,0.69421471,31674.0,31663.0,0.13632608]
[1609775446517,1.01107031,31686.0,31663.0,0.13632608]
[1609775446918,0.0946,31675.0,31663.0,0.13632608]
[1609775447117,0.22047,31675.0,31663.0,0.13632608]
[1609775447719,0.13632608,31664.0,31663.0,0.13632608]
[1609775450220,0.13632608,31664.0,31654.0,0.11929]
[1609775451021,0.13632608,31664.0,31645.0,0.13724]
[1609775451223,0.13632608,31664.0,31643.0,4.3471]
[1609775451624,0.13632608,31664.0,31607.0,2.07017105]
[1609775451825,0.10056,31667.0,31622.0,4.3938]
[1609775453227,0.2743,31666.0,31622.0,4.3938]
[1609775453427,0.37352,31666.0,31622.0,4.3938]
[1609775453830,0.37352,31666.0,31644.0,0.13632608]
[1609775454031,0.46932,31666.0,31644.0,0.24708608]
[1609775454229,0.5292,31665.0,31644.0,0.24708608]
[1609775454431,0.5292,31665.0,31644.0,0.11076]
[1609775454629,0.5292,31665.0,31622.0,4.3938]
[1609775454829,0.37352,31666.0,31601.0,2.06879148]
[1609775455031,4.5787,31660.0,31615.0,0.21372]
[1609775455430,0.40845,31659.0,31615.0,0.21372]
[1609775456030,0.40845,31659.0,31626.0,0.10294]
[1609775457831,0.40845,31659.0,31645.0,0.13632608]
[1609775459236,0.37921591,31657.0,31645.0,0.13632608]
[1609775459536,0.37921591,31657.0,31634.0,3.7048]
[1609775459936,0.37921591,31657.0,31645.0,0.13632608]
[1609775461840,0.13632608,31646.0,31645.0,0.13632608]
[1609775463441,0.40845,31659.0,31645.0,0.13632608]
[1609775463842,0.40845,31659.0,31653.0,0.13632608]
[1609775464042,0.40845,31659.0,31636.0,4.8349]
[1609775464444,0.40845,31659.0,31636.0,4.9553]
[1609775465943,0.40845,31659.0,31653.0,0.13632608]
[1609775466345,0.096,31658.0,31653.0,0.13632608]
[1609775466745,0.40845,31659.0,31653.0,0.13632608]
[1609775467347,0.47391868,31660.0,31653.0,0.13632608]
[1609775467947,0.47391868,31660.0,31659.0,0.13632608]
[1609775468749,0.41841868,31660.0,31659.0,0.13632608]
[1609775469349,0.13632608,31662.0,31659.0,0.13632608]
[1609775469552,0.07342608,31662.0,31659.0,0.13632608]
[1609775469751,0.35706102,31664.0,31659.0,0.13632608]
[1609775469950,0.35706102,31664.0,31663.0,0.13632608]
[1609775470951,0.12587,31675.0,31663.0,0.13632608]
[1609775471152,0.64927433,31692.0,31663.0,0.13632608]
[1609775471851,0.64927433,31692.0,31681.0,0.13632608]
[1609775472452,0.64927433,31692.0,31662.0,4.90788]
[1609775472653,0.77569433,31692.0,31662.0,4.90788]
[1609775473054,0.12642,31692.0,31662.0,4.90788]
[1609775473956,0.12642,31692.0,31673.0,0.13632608]
[1609775475857,0.12642,31692.0,31682.0,0.13632608]
[1609775476057,0.12642,31692.0,31662.0,0.09878]
[1609775476257,0.12642,31692.0,31667.0,4.8586]
[1609775477260,0.12642,31692.0,31668.0,0.0956]
[1609775477658,0.94034855,31694.0,31667.0,4.8586]
[1609775477858,0.94034855,31694.0,31686.0,0.13632608]
[1609775479664,0.2888,31694.0,31686.0,0.13439868]
[1609775479864,0.13632608,31687.0,31686.0,0.13439868]
[1609775480063,0.25749608,31687.0,31686.0,0.13439868]
[1609775485472,0.12117,31687.0,31665.0,0.0937]
[1609775485872,0.10694,31687.0,31665.0,0.0937]
[1609775486072,0.10694,31687.0,31677.0,0.13632608]
[1609775486273,0.5537,31686.0,31662.0,0.10477]
[1609775486473,0.10694,31687.0,29267.0,0.02808571]
[1609775486674,4.7017,31681.0,31633.0,2.07490448]
[1609775487674,4.7017,31681.0,31636.0,0.2137]
[1609775487874,4.7017,31681.0,31638.0,0.0959]
[1609775488075,4.7017,31681.0,31653.0,0.13632608]
[1609775488274,0.0949,31682.0,31653.0,0.13632608]
[1609775488477,0.0959,31681.0,31653.0,0.13632608]
[1609775489077,4.4881,31669.0,31644.0,0.15464]
[1609775489278,4.4881,31669.0,31636.0,0.1204]
[1609775489279,0.14668,31669.0,31636.0,0.1204]
[1609775489476,0.14668,31669.0,31617.0,2.07537958]
[1609775489679,4.2704,31656.0,31617.0,2.07537958]
[1609775489880,4.36857,31656.0,31617.0,2.07537958]
[1609775490181,4.36857,31656.0,31628.0,0.13632608]
[1609775490380,4.36857,31656.0,31628.0,0.23666608]
[1609775491279,4.36857,31656.0,31628.0,0.13632608]
[1609775491480,0.0947,31655.0,31620.0,0.10504]
[1609775491979,0.09817,31656.0,31631.0,0.13632608]
[1609775493981,0.09817,31656.0,31648.0,0.13632608]
[1609775494982,0.65553894,31658.0,31648.0,0.13632608]
[1609775495383,0.65770852,31659.0,31648.0,0.13632608]
[1609775495983,0.33781549,31646.0,31627.0,0.20737]
[1609775496183,0.33781549,31646.0,31629.0,4.3077]
[1609775496585,0.10184,31650.0,31627.0,0.20737]
[1609775496785,0.10184,31650.0,31636.0,3.8272]
[1609775496985,4e-05,31650.0,31637.0,0.0937]
[1609775497385,0.65941866,31666.0,31637.0,0.0937]
[1609775498086,0.65941866,31666.0,31665.0,0.13632608]
[1609775498287,0.14668,31669.0,31638.0,0.0939]
[1609775498288,0.14668,31669.0,31648.0,0.13823]
[1609775498687,0.66565888,31676.0,31648.0,0.13823]
[1609775498888,0.3159957,31665.0,31648.0,0.13823]
[1609775499289,0.3159957,31665.0,31649.0,0.0947]
[1609775499790,0.3159957,31665.0,31648.0,0.13823]
[1609775499989,0.3159957,31665.0,31650.0,0.13632608]
[1609775500693,0.3159957,31665.0,31648.0,0.13823]
[1609775501395,0.14382,31666.0,31648.0,0.13823]
[1609775502095,0.14382,31666.0,31661.0,0.13632608]
[1609775503498,0.66804776,31674.0,31661.0,0.13632608]
[1609775504098,0.13632608,31671.0,31670.0,0.13632608]
[1609775505301,4.7848,31685.0,31656.0,0.24465]
[1609775506102,0.13632608,31657.0,31656.0,0.28547608]
[1609775506702,5.0503,31668.0,31656.0,0.28547608]
[1609775506902,0.1533,31673.0,31656.0,0.28547608]
[1609775507102,0.1533,31673.0,31656.0,0.24265]
[1609775508504,0.13632608,31675.0,31656.0,0.24265]
[1609775508703,0.13632608,31675.0,31656.0,0.14915]
[1609775508903,0.13632608,31675.0,31656.0,0.15197]
[1609775509804,0.10819,31679.0,31656.0,0.15197]
[1609775510213,0.10819,31679.0,31669.0,0.13632608]
[1609775510803,0.10819,31679.0,31665.0,0.1533]
[1609775512206,0.10819,31679.0,31672.0,0.13632608]
[1609775512405,0.10819,31679.0,31665.0,0.1533]
[1609775514209,0.10694,31687.0,31669.0,0.13632608]
[1609775514410,0.15628,31679.0,31669.0,0.13632608]
[1609775515110,0.15628,31679.0,31653.0,0.25249]
[1609775515311,0.0936,31678.0,31653.0,0.25249]
[1609775516311,0.0936,31678.0,31670.0,0.13632608]
[1609775516511,0.0936,31677.0,31670.0,0.13632608]
[1609775517112,0.15628,31679.0,31670.0,0.13632608]
[1609775517513,0.15628,31679.0,31671.0,0.0941]
[1609775518114,0.0939,31678.0,31671.0,0.0941]
[1609775518314,0.13632608,31672.0,31671.0,0.0941]
[1609775518515,0.13632608,31672.0,31670.0,0.13632608]
[1609775518718,0.28369608,31672.0,31670.0,0.13632608]
[1609775519317,0.28369608,31672.0,31664.0,5.0421]
[1609775519519,0.37709608,31672.0,31665.0,0.0959]
[1609775519717,0.37709608,31672.0,31664.0,5.0421]
[1609775519718,0.28369608,31672.0,31664.0,5.0421]
[1609775519918,0.28369608,31672.0,31653.0,0.27347168]
[1609775520318,0.14737,31672.0,31663.0,0.13632608]
[1609775520718,0.0954,31671.0,31664.0,0.0953]
[1609775520921,0.14737,31672.0,31663.0,0.13632608]
[1609775522019,0.0932,31671.0,31664.0,0.0941]
[1609775522220,0.0942,31670.0,31664.0,0.0941]
[1609775522621,0.13337,31672.0,31664.0,0.0941]
[1609775522820,0.81297658,31686.0,31664.0,0.0941]
[1609775523020,0.65329624,31683.0,31664.0,0.0941]
[1609775523221,0.62967658,31686.0,31672.0,4.9689]
[1609775523421,0.05047658,31686.0,31673.0,0.0937]
[1609775523622,0.67623678,31689.0,31685.0,0.13632608]
[1609775523822,0.65863678,31689.0,31685.0,0.13632608]
[1609775524023,0.65863678,31689.0,31686.0,0.7476]
[1609775524422,0.59703678,31689.0,31686.0,0.7476]
[1609775524722,0.54993678,31689.0,31686.0,0.7476]
[1609775525124,0.31567602,31697.0,31686.0,0.7476]
[1609775525525,0.31567602,31697.0,31687.0,0.0949]
[1609775525725,1.04406302,31715.0,31696.0,0.13632608]
[1609775526328,0.2884,31719.0,31696.0,0.13632608]
[1609775527130,0.2884,31719.0,31696.0,0.7091]
[1609775527329,0.37873225,31697.0,31696.0,0.7091]
[1609775527930,0.25653225,31697.0,31696.0,0.7091]
[1609775528331,0.23293225,31697.0,31696.0,0.84542608]
[1609775528732,0.47329668,31702.0,31697.0,0.0956]
[1609775528932,0.47329668,31702.0,31696.0,0.81494]
[1609775530531,0.13632608,31712.0,31696.0,0.81494]
[1609775530731,0.13632608,31712.0,31696.0,0.10584]
[1609775530932,0.0953,31711.0,31701.0,4.3352]
[1609775531132,0.0946,31710.0,31701.0,4.3352]
[1609775532033,0.0946,31710.0,31702.0,0.094]
[1609775532231,0.13632608,31712.0,31701.0,4.3352]
[1609775532431,0.13632608,31712.0,31709.0,0.13632608]
[1609775533432,0.0936,31714.0,31709.0,0.83082608]
[1609775533634,0.14149,31728.0,31709.0,0.83082608]
[1609775533834,0.14149,31728.0,31710.0,0.095]
[1609775534036,0.14149,31728.0,31709.0,0.83082608]
[1609775534334,0.14149,31728.0,31722.0,0.13632608]
[1609775535136,0.3152287,31742.0,31722.0,0.13632608]
[1609775535436,0.6928914,31751.0,31722.0,0.13632608]
[1609775536036,1.04100014,31761.0,31722.0,0.13632608]
[1609775536435,0.13632608,31728.0,31727.0,0.13632608]
[1609775539337,0.40753,31739.0,31727.0,0.13632608]
[1609775539739,0.40753,31739.0,31727.0,4.12792608]
[1609775539946,0.11913,31739.0,31727.0,4.12792608]
[1609775540136,0.11913,31739.0,31727.0,0.13632608]
[1609775540338,0.11913,31739.0,31738.0,0.13632608]
[1609775540837,0.2999,31753.0,31730.0,0.12436]
[1609775542339,0.2999,31753.0,31742.0,0.13632608]
[1609775543940,0.2999,31753.0,31730.0,0.12436]
[1609775544140,0.41616,31753.0,31730.0,0.12436]
[1609775544340,0.41616,31753.0,31733.0,0.13632608]
[1609775544941,3.701,31750.0,31723.0,0.10217]
[1609775545140,0.41616,31753.0,31723.0,0.10217]
[1609775545339,4.0124,31749.0,31707.0,4.5591]
[1609775545540,4.0124,31749.0,31717.0,0.5707]
[1609775545739,4.0124,31749.0,31717.0,0.72596]
[1609775546442,4.0124,31749.0,31731.0,0.13632608]
[1609775546842,0.41616,31753.0,31731.0,0.13632608]
[1609775548445,0.41616,31753.0,31736.0,0.13632608]
[1609775550345,0.41616,31753.0,31731.0,0.1503]
[1609775550548,0.41616,31753.0,31724.0,0.10124]
[1609775550746,0.41616,31753.0,31738.0,0.13632608]
[1609775550947,0.41616,31753.0,31734.0,3.674]
[1609775553148,0.41616,31753.0,31742.0,0.13632608]
[1609775553448,0.41616,31753.0,31734.0,3.674]
[1609775553651,0.41616,31753.0,31724.0,0.10124]
[1609775554249,0.41616,31753.0,31718.0,4.0181]
[1609775555151,0.41616,31753.0,31733.0,0.13632608]
[1609775555751,0.41616,31753.0,31732.0,4.0617]
[1609775556653,0.41616,31753.0,31725.0,0.13923]
[1609775557253,0.41616,31753.0,31734.0,0.13632608]
[1609775558061,0.41616,31753.0,31725.0,0.13923]
[1609775559158,0.41616,31753.0,31734.0,0.13632608]
[1609775559960,0.41616,31753.0,31725.0,0.13923]
[1609775560160,0.41616,31753.0,31726.0,3.5469]
[1609775561160,0.41616,31753.0,31730.0,0.13632608]
[1609775561859,0.41616,31753.0,31726.0,3.5469]
[1609775562260,0.41616,31753.0,31725.0,0.13923]
[1609775562460,0.41616,31753.0,31717.0,0.15526]
[1609775562662,0.41616,31753.0,31714.0,4.5893]
[1609775563264,0.41616,31753.0,31725.0,0.13632608]
[1609775563463,0.41616,31753.0,31718.0,0.11805]
[1609775565165,0.41616,31753.0,31730.0,0.13632608]
[1609775565669,0.41616,31753.0,31718.0,0.11805]
[1609775567268,0.13632608,31719.0,31718.0,0.11805]
[1609775568171,0.10748,31734.0,31718.0,0.11805]
[1609775568569,0.10748,31734.0,31717.0,0.104]
[1609775569169,0.10748,31734.0,31733.0,0.13632608]
[1609775571172,0.13632608,31739.0,31733.0,0.13632608]
[1609775571372,0.13632608,31739.0,31724.0,0.1328]
[1609775572572,0.13632608,31739.0,31720.0,3.696]
[1609775573173,0.13632608,31723.0,31722.0,0.13632608]
[1609775575776,0.73082608,31723.0,31722.0,0.13632608]
[1609775575979,0.13632608,31723.0,31722.0,0.13632608]
[1609775576176,0.13632608,31723.0,31708.0,0.11769]
[1609775576383,0.13632608,31723.0,31710.0,4.2506]
[1609775577276,0.13632608,31711.0,31710.0,4.2506]
[1609775577477,0.13632608,31711.0,31707.0,0.02098168]
[1609775580881,4.0327,31708.0,31707.0,0.02098168]
[1609775581083,0.13632608,31711.0,31707.0,0.02098168]
[1609775581283,0.14885,31718.0,31710.0,0.13632608]
[1609775581885,4.0855,31724.0,31710.0,0.13632608]
[1609775582883,0.2784,31725.0,31711.0,0.0957]
[1609775583084,0.2784,31725.0,31707.0,0.14378168]
[1609775583585,0.31527839,31737.0,31707.0,0.14378168]
[1609775583784,0.13632608,31728.0,31724.0,0.13632608]
[1609775585183,0.60924367,31728.0,31724.0,0.13632608]
[1609775586689,0.13632608,31728.0,31724.0,0.13632608]
[1609775588289,0.13632608,31728.0,31715.0,0.13088]
[1609775589689,0.13632608,31723.0,31720.0,0.13632608]
[1609775589890,0.13632608,31723.0,31722.0,5.1481]
[1609775590790,0.13632608,31723.0,31720.0,0.13632608]
[1609775594493,0.13632608,31723.0,31721.0,4.5129]
[1609775595795,0.13632608,31723.0,31720.0,0.13632608]
[1609775596796,0.13632608,31723.0,31714.0,0.0938]
[1609775597197,0.13632608,31723.0,31712.0,2.1037668]
[1609775597698,0.13632608,31713.0,31712.0,2.1037668]
[1609775597899,0.13632608,31713.0,31709.0,2.1042326]
[1609775598298,0.13632608,31713.0,31711.0,3.6202]
[1609775600501,0.13632608,31713.0,31708.0,0.13632608]
[1609775601101,0.13632608,31713.0,31707.0,0.02098168]
[1609775601701,0.13632608,31708.0,31707.0,0.02098168]
[1609775602102,0.13632608,31708.0,31704.0,1.24011336]
[1609775602305,0.13632608,31708.0,31693.0,5.1297]
[1609775602306,0.13632608,31708.0,31697.0,2.29556378]
[1609775603604,0.13632608,31708.0,31693.0,2.48686076]
[1609775603605,0.13632608,31708.0,31693.0,2.29643261]
[1609775603804,0.13632608,31694.0,31693.0,2.29643261]
[1609775604807,0.15504,31709.0,31693.0,2.29643261]